Cogmind - Beta 15 @@@ ROGUE MODE // 2025.06.03 @ 14:56:29 Player: puppuppit Result: Destroyed by G-50 Soldier with Heavy Laser Performance ------------- Evolutions (4) 2000 Regions Visited (6) 1200 Robots Destroyed (125) 625 Value Destroyed (3528) 3528 Prototype IDs (24) 480 Alien Tech Used (0) 0 Bonus (1470) 1470 TOTAL SCORE: 9303 Bonus ------- High Alert Combat Kills 506 Follower Combat Kills 173 Registered with UFD 300 Met Optimus in HQ 500 Friendly Fire -9 Cogmind --------- Core Integrity 0/850 Matter 135/300 Energy 150/150 System Corruption 23% Temperature Cool (27) Movement Walking (120) Location -6/Factory Parts ------- > --- POWER (1) -------- Micro Nuclear Core > --- PROPULSION (4) --- Flexi-carbon Leg Flexi-carbon Leg Multireflex Exoskeleton > --- UTILITY (6) ------ Medium Storage Unit Hacking Suite Hacking Suite Improved Hacking Suite System Shield Improved System Shield > --- WEAPON (4) ------- Heavy Pick (fused) Heavy Pick > --- INVENTORY (10) --- Improved Gyrokinetic Inverter High-capacity Matter Pod (76) Improved Heavy Armor Plating A0-MCA's Component Scanner Recalibrator Recalibrator Hardcell Cannon Long-range Missile Launcher Peak State ------------ > --- POWER ------------ Micro Nuclear Core > --- PROPULSION ------- Gravmag System Gravmag System Improved Gravmag System Gravmag Array > --- UTILITY ---------- Large Storage Unit Transmission Jammer Hacking Suite Hacking Suite System Shield Rainbow Chip > --- WEAPON ----------- Gauss Rifle Gauss Rifle Gauss Rifle Gauss Rifle > --- INVENTORY -------- Light Deuterium Engine Improved Hover Unit Aerolev Unit Backup Propulsion III Scrap Suit Improved Heat Sink High-capacity Matter Pod Advanced Sensor Array Improved Heavy Armor Plating A0-MCA's Component Scanner High-powered Shotgun Magnetic Acceleration Cannon Heavy Missile Launcher [Rating: 76] Favorites ----------- Power Subdweller Power Source Engine Subdweller Power Source Power Core Micro Nuclear Core Propulsion Light Treads Treads Light Treads Leg Flexi-carbon Leg Wheel Wheel Hover Unit Gravmag System Utility Large Storage Unit Device Structural Scanner Storage Large Storage Unit Processor Rainbow Chip Hackware Hacking Suite Protection Improved Light Armor Plating Weapon Subdweller Machine Gun Energy Gun Small Laser Ballistic Gun Subdweller Machine Gun Ballistic Cannon Hardcell Cannon Launcher Grenade Launcher Piercing Weapon Heavy Pick Build | -11 -10 -10 -9 -6 -6 -6 ------- Run | Yrd Mat Sub Scr Fac Was Fac Slots Evolved 8 | . . . . 8 . . Power . | . . . . . . . Propulsion 2 | . . . . 2 . . Utility 4 | . . . . 4 . . Weapon 2 | . . . . 2 . . Parts Attached 97 | 7 14 7 4 49 2 14 Power 12 | 1 3 1 . 5 . 2 Engine 8 | 1 2 1 . 3 . 1 Core 4 | . 1 . . 2 . 1 Reactor . | . . . . . . . Propulsion 30 | 2 5 1 1 16 . 5 Treads 9 | 2 2 1 1 1 . 2 Leg 3 | . . . . 1 . 2 Wheel 4 | . 3 . . . . 1 Hover 14 | . . . . 14 . . Flight . | . . . . . . . Utility 29 | 2 2 1 1 15 2 6 Device 12 | 1 1 . . 6 2 2 Storage 4 | 1 1 . 1 1 . . Processor 1 | . . . . 1 . . Hackware 9 | . . . . 6 . 3 Protection 3 | . . 1 . 1 . 1 Artifact . | . . . . . . . Weapon 26 | 2 4 4 2 13 . 1 Energy Gun 1 | 1 . . . . . . Energy Cannon . | . . . . . . . Ballistic Gun 16 | 1 3 3 2 7 . . Ballistic Cannon 1 | . . . . . . 1 Launcher 5 | . 1 1 . 3 . . Special Weapon . | . . . . . . . Impact Weapon . | . . . . . . . Slashing Weapon . | . . . . . . . Piercing Weapon 3 | . . . . 3 . . Special Melee Weapon . | . . . . . . . Unidentified Prototypes 5 | . . . . 3 2 . Parts Lost 40 | . 3 . . 37 . . Power 5 | . 1 . . 4 . . Propulsion 16 | . 1 . . 15 . . Utility 7 | . . . . 7 . . Weapon 12 | . 1 . . 11 . . Highest Loss Streak 7 | . 2 . . 7 . . To Critical Strikes . | . . . . . . . Average Backups 10 | . 11 14 11 9 6 7 Power . | . . 1 . . . . Propulsion 1 | . 1 2 . 1 . 1 Utility 5 | . 3 5 6 5 4 5 Weapon 3 | . 4 6 3 2 . . Tool/Special . | . . . . . . . Unused Backups 41 | . 5 4 12 15 . 5 Power 4 | . . . 1 3 . . Propulsion 4 | . . 1 1 1 . 1 Utility 22 | . 5 1 5 8 . 3 Weapon 11 | . . 2 5 3 . 1 Tool/Special . | . . . . . . . Average Slot Usage (%) 92 | . 98 100 92 84 56 79 Engine 7 | . 8 14 7 2 . 1 Core 1 | . 5 . . 2 . . Treads 19 | . 24 28 28 1 . 5 Hover 4 | . . . . 19 . . Device 10 | . 14 12 14 4 5 5 Storage 11 | . 14 14 14 5 6 6 Hackware 6 | . . . . 18 20 24 Ballistic Gun 23 | . 27 27 28 17 . . Piercing Weapon 1 | . . . . 2 17 13 Peak Build Rating 76 | 9 14 16 18 76 57 61 Average Rating 26 | 5 12 13 14 55 47 54 On Entrance 19 | . 9 13 14 18 39 45 Naked Turns . | . . . . . . . Heaviest Build 45 | 12 32 37 34 45 23 41 Greatest Support 48 | 40 40 40 40 48 36 40 Greatest Overweight (x) 2 | . 1 . . 2 . 2 Average Overweight (x) . | . . . . . . . Largest Inventory Capacity 15 | 8 15 15 15 15 10 10 Average Capacity 13 | 7 14 15 15 12 10 10 Most Carried 15 | 2 15 15 15 15 9 10 Average Carried 11 | . 11 14 12 10 8 9 Final Capacity 15 | 8 15 15 15 10 10 10 Final Carried 15 | 2 15 15 15 5 9 9 Class Distribution -------------------- 68% | Mutant 9% | Hacker-Skirmisher 8% | Hacker-Gunner 5% | Hacker-Mutant 5% | Hacker-Gladiator Dominant Class ---------------- Mutant | -10/Materials Mutant | -10/Subcaves Mutant | -9/Scraptown Hacker-Skirmisher | -6/Factory Hacker-Gladiator | -6/Waste Hacker-Mutant | -6/Factory Resources | -11 -10 -10 -9 -6 -6 -6 ----------- Run | Yrd Mat Sub Scr Fac Was Fac Matter Collected 5571 | 351 1883 572 22 2581 . 162 Remotely . | . . . . . . . Salvage Created 4573 | 169 1323 279 . 2640 . 162 Parts 258 | 15 96 22 . 118 . 7 Haulers Intercepted 3 | . 2 . . 1 . . Recyclers Shooed 6 | . 1 . . 4 . 1 Parts Field Recycled . | . . . . . . . Retrieved Matter . | . . . . . . . Parts Self-Destructed 3 | . . 3 . . . . Prevented . | . . . . . . . Kills | -11 -10 -10 -9 -6 -6 -6 ------- Run | Yrd Mat Sub Scr Fac Was Fac Combat Hostiles Destroyed 64 | . 18 9 . 35 . 2 Melee 3 | . . . . 1 . 2 Guns 39 | . 16 3 . 20 . . AOE 22 | . 2 6 . 14 . . Classes Destroyed 13 | 3 5 2 . 3 . . Worker 15 | 2 8 . . 4 . 1 Builder 11 | . 5 . . 6 . . Tunneler 8 | 4 3 . . 1 . . Hauler 3 | . 2 . . 1 . . Recycler 13 | 1 4 . . 8 . . Operator 4 | . 2 . . 2 . . Watcher 7 | . 3 . . 3 . 1 Swarmer 6 | . . 3 . 3 . . Grunt 37 | . 18 . . 19 . . Sentry 5 | . . . . 4 . 1 Hunter 6 | . . . . 6 . . Programmer 4 | . . . . 3 . 1 Subdweller 6 | . . 6 . . . . Best Kill Streak 11 | 4 8 3 . 11 . 1 Combat Bots Only 6 | . 4 3 . 6 . 1 Max Kills in Single Turn 2 | 1 2 2 . 2 . 1 Gunslinging . | . . . . . . . Exploded 2 | . 1 2 . 2 . . Melee 1 | . . . . 1 . 1 Uniques/NPCs Destroyed . | . . . . . . . Combat | -11 -10 -10 -9 -6 -6 -6 -------- Run | Yrd Mat Sub Scr Fac Was Fac Hostile Shots Fired 575 | . 95 28 . 399 1 52 Missed 199 | . 26 10 . 146 . 17 Hits 376 | . 69 18 . 253 1 35 Melee 5 | . . . . 4 1 . Projectile 371 | . 69 18 . 249 . 35 AOE 1 | . . . . 1 . . Critical Strikes 14 | . . . . 10 1 3 Damage Taken 5789 | . 860 445 . 3931 51 502 Core 1006 | . 113 36 . 733 51 73 Absorbed by Shields . | . . . . . . . Regen/Repaired (Parts) 699 | . 266 . . 433 . . Core Remaining (%) 70 | 100 . . 40 . . . Volleys Fired 254 | 16 88 29 . 121 . . Largest 4 | 2 2 2 . 4 . . Hottest 123 | 60 53 60 . 123 . . Shots Fired 668 | 25 173 52 . 418 . . Gun 616 | 25 169 37 . 385 . . Cannon . | . . . . . . . Launcher 52 | . 4 15 . 33 . . Special . | . . . . . . . Kinetic 607 | 16 169 37 . 385 . . Thermal 9 | 9 . . . . . . Explosive 52 | . 4 15 . 33 . . Electromagnetic . | . . . . . . . Robot Hit Streak 17 | 7 8 12 . 17 . . Robot Miss Streak 6 | 2 5 3 . 6 . . Penetration Max 1 | . . . . 1 . . Secondary Targets 5 | . 1 . . 4 . . Max Gunslinging Chain 1 | . 1 . . 1 . . Shots Hit Robots 406 | 15 120 23 . 232 . 16 Core Hits 274 | 8 82 21 . 157 . 6 Critical Kills 3 | . 1 . . 2 . . Critical Parts Destroyed 5 | . . . . 5 . . Critical Strikes 10 | . 1 1 . 7 . 1 Destroy 9 | . 1 1 . 7 . . Impale 1 | . . . . . . 1 Melee Attacks 36 | . . . . 17 . 19 Impact . | . . . . . . . Slashing . | . . . . . . . Piercing 36 | . . . . 17 . 19 Sneak Attacks 6 | . . . . 3 . 3 Combat Hostiles . | . . . . . . . Follow-up Attacks 4 | . . . . . . 4 Damage Inflicted 10947 | 182 2187 1053 . 6961 . 564 Guns 6476 | 182 1783 328 . 4183 . . Cannons . | . . . . . . . Explosions 3556 | . 404 725 . 2427 . . Melee 904 | . . . . 340 . 564 Ramming 11 | . . . . 11 . . Kinetic 6408 | 114 1783 328 . 4183 . . Thermal 322 | 68 . . . 254 . . Explosive 3302 | . 404 725 . 2173 . . Electromagnetic . | . . . . . . . Impact . | . . . . . . . Slashing . | . . . . . . . Piercing 904 | . . . . 340 . 564 Highest Corruption 23 | . 4 4 . 2 20 23 Average Corruption 5 | . 3 4 . 1 14 21 Corruption Purged . | . . . . . . . Corruption Blocked . | . . . . . . . Effects 110 | . 32 39 . 9 7 23 Message Errors 25 | . 11 8 . 2 . 4 Matter Fused 25 | . 7 11 . 3 2 2 Heat Flow Errors 22 | . 3 7 . 3 1 8 Energy Discharges 12 | . 4 4 . . 1 3 Parts Fused 1 | . . . . . . 1 Data Loss (minor) 5 | . 2 2 . . . 1 Data Loss (major) 5 | . 1 2 . 1 . 1 Misfires 4 | . 1 3 . . . . Alerts 5 | . 1 2 . . 1 1 Misdirections 4 | . . . . . 2 2 Weapon Failures 2 | . 2 . . . . . Overload Shots . | . . . . . . . Overflow Damage 176 | . 15 . . 148 . 13 Projectiles . | . . . . . . . Explosions 88 | . 15 . . 73 . . Melee 88 | . . . . 75 . 13 Knockbacks 1 | . . . . 1 . . Impact 1 | . . . . 1 . . Kinetic . | . . . . . . . Secondary . | . . . . . . . Self-Inflicted Damage 211 | . 22 . . 189 . . Shots 8 | . 1 . . 7 . . Rammed . | . . . . . . . Targets Rammed 3 | . . . . 3 . . Kicked 3 | . . . . 3 . . Crushed . | . . . . . . . Highest Temperature 271 | . 248 216 . 271 197 254 Average Temperature 68 | . 70 76 . 61 104 112 Received Heat Transfer 1675 | . 471 69 . 937 . 198 Effects 1 | . 1 . . . . . Interference 1 | . 1 . . . . . Siege Activations . | . . . . . . . Martial Activations 1 | . . . . 1 . . Total Turns 6 | . . . . 6 . . Longest Duration 6 | . . . . 6 . . Shielding Activations . | . . . . . . . Robots Disrupted . | . . . . . . . Combat Hostiles . | . . . . . . . Robots Corrupted . | . . . . . . . Combat Hostiles . | . . . . . . . Parts Fried . | . . . . . . . Impact Corruptions . | . . . . . . . Robots Melted . | . . . . . . . Combat Hostiles . | . . . . . . . Parts Melted 1 | . . . . 1 . . Heat Transferred 350 | 150 . . . 200 . . Parts Sabotaged . | . . . . . . . Parts Stolen . | . . . . . . . Parts Stripped . | . . . . . . . Power Chain Reactions . | . . . . . . . Alert | -11 -10 -10 -9 -6 -6 -6 ------- Run | Yrd Mat Sub Scr Fac Was Fac Maximum Alert Level 4 | . 1 . . 4 2 1 Low Security (%) 52 | 100 80 . . 23 . 81 Level 1 25 | . 19 . . 31 46 18 Level 2 12 | . . . . 23 53 . Level 3 5 | . . . . 11 . . Level 4 4 | . . . . 10 . . Level 5 . | . . . . . . . High Security . | . . . . . . . Max Security . | . . . . . . . Peak Influence 1272 | 15 254 . . 1272 445 248 Initial 445 | . . . . . 445 248 Average 275 | 3 98 . . 462 402 152 Influence Increases 3123 | 35 714 70 . 2226 . 78 Destroy 0b10 Robot/C 1240 | . 360 60 . 780 . 40 Destroy 0b10 Robot/NC 310 | 35 135 . . 130 . 10 Destroy Leader 322 | . 100 10 . 190 . 22 Allied During Kill 32 | . . . . 32 . . Trap Triggered on 0b10 10 | . . . . 10 . . Successful Hack 85 | . 32 . . 47 . 6 Select Force Hacks 90 | . 60 . . 30 . . Disable Machine 255 | . 15 . . 240 . . Destroy Structure 269 | . 12 . . 257 . . Partial Spotted 15 | . . . . 15 . . Lose Combat Pursuer 495 | . . . . 495 . . Influence Decreases 3043 | 35 711 73 . 954 917 353 Entered New Map 937 | . . 3 . . 827 107 Time Decay 1536 | 35 531 70 . 564 90 246 Lost Part 400 | . 30 . . 370 . . Lost Ally 20 | . . . . 20 . . Purge Threat 150 | . 150 . . . . . Squads Dispatched 32 | . 6 . . 24 . 2 Investigation 14 | . 5 . . 8 . 1 Extermination 4 | . . . . 3 . 1 Reinforcement 9 | . 1 . . 8 . . Assault 2 | . . . . 2 . . Garrison 3 | . . . . 3 . . Intercept . | . . . . . . . Searches Triggered . | . . . . . . . Construction Impeded 3 | . . . . 3 . . Haulers Reinforced 1 | . . . . 1 . . Active Scanning Responses . | . . . . . . . Cargo Convoy Interrupts . | . . . . . . . Stealth | -11 -10 -10 -9 -6 -6 -6 --------- Run | Yrd Mat Sub Scr Fac Was Fac Distress Signals 4 | . . . . 4 . . Communications Jammed 1 | . . . . 1 . . Distress Signals 1 | . . . . 1 . . Times Spotted 144 | . 27 8 . 97 6 6 Peak Tracking Total 10 | . 6 3 . 10 6 3 Tactical Retreats 17 | . . . . 16 1 . Traps | -11 -10 -10 -9 -6 -6 -6 ------- Run | Yrd Mat Sub Scr Fac Was Fac Traps Triggered 9 | . 3 3 . 1 . 2 Indirectly . | . . . . . . . Trap Hack Attempts . | . . . . . . . Triggered . | . . . . . . . Disarmed . | . . . . . . . Reprogrammed . | . . . . . . . Reused 1 | . . . . 1 . . Traps Extracted . | . . . . . . . Installed 1 | . . . . 1 . . Triggered 1 | . . . . 1 . . Most Traps Carried 1 | . . . 1 1 . . Machines | -11 -10 -10 -9 -6 -6 -6 ---------- Run | Yrd Mat Sub Scr Fac Was Fac Machines Disabled 18 | . 1 1 . 16 . . Max in Single Turn 3 | . 1 1 . 3 . . Garrison Access 2 | . . . . 2 . . Machines Repaired . | . . . . . . . Machines Dismantled . | . . . . . . . Machines Sabotaged . | . . . . . . . Overloaded Fab Kills . | . . . . . . . Hacking | -11 -10 -10 -9 -6 -6 -6 --------- Run | Yrd Mat Sub Scr Fac Was Fac Machines Accessed 35 | . 9 2 3 17 . 4 Terminals 8 | . 6 . . 2 . . Fabricators 5 | . . . . 3 . 2 Repair Stations 3 | . 1 . . 2 . . Recycling Units 8 | . 2 . . 6 . . Scanalyzers 4 | . . . . 2 . 2 Garrison Access 2 | . . . . 2 . . Total Hacks 125 | . 39 5 11 55 . 15 Successful 94 | . 26 5 11 44 . 8 Failed 30 | . 12 . . 11 . 7 Catastrophic 4 | . 2 . . . . 2 Database Lockouts 1 | . 1 . . . . . Manual 26 | . 15 . . 11 . . Terminals 32 | . 24 . . 8 . . Fabricators 11 | . . . . 7 . 4 Repair Stations 28 | . 12 . . 16 . . Recycling Units 9 | . 3 . . 6 . . Scanalyzers 26 | . . . . 15 . 11 Garrison Access 3 | . . . . 3 . . Terminal Hacks 25 | . 8 5 11 1 . . Record 8 | . . 4 4 . . . Robot Analysis 8 | . 2 . 6 . . . Prototype ID Bank 1 | . 1 . . . . . Branch Access Points 2 | . 1 . . 1 . . Terminal Index 1 | . 1 . . . . . Recycling Unit Index 1 | . 1 . . . . . Unreport Threat 1 | . 1 . . . . . Zone Layout 1 | . 1 . . . . . Proto ID Catalog 2 | . . 1 1 . . . Fabricator Hacks 9 | . . . . 6 . 3 Network Status 2 | . . . . 1 . 1 Load Schematic 3 | . . . . 2 . 1 Build 4 | . . . . 3 . 1 Repair Station Hacks 25 | . 12 . . 13 . . Scan Component 12 | . 6 . . 6 . . Repair 12 | . 6 . . 6 . . Refit 1 | . . . . 1 . . Recycling Unit Hacks 1 | . 1 . . . . . Report Inventory 1 | . 1 . . . . . Scanalyzer 19 | . . . . 14 . 5 Insert Component 10 | . . . . 7 . 3 Analyze 9 | . . . . 7 . 2 Garrison Access Hacks 2 | . . . . 2 . . Seal Access 2 | . . . . 2 . . Unauthorized Hacks 13 | . 5 . . 8 . . Terminals 5 | . 3 . . 2 . . Botnet 5 | . 3 . . 2 . . Fabricators . | . . . . . . . Repair Stations . | . . . . . . . Recycling Units 8 | . 2 . . 6 . . Tunnel 3 | . 2 . . 1 . . Fedlink 4 | . . . . 4 . . Scrapoids 1 | . . . . 1 . . Scanalyzers . | . . . . . . . Garrison Access . | . . . . . . . Data Cores Recovered 1 | . . . . 1 . . Used . | . . . . . . . Hacking Detections 17 | . 6 . . 8 . 3 Full Trace Events 6 | . 3 . . 2 . 1 Feedback Events . | . . . . . . . Feedback Blocked . | . . . . . . . Robot Schematics Acquired . | . . . . . . . Robots Built . | . . . . . . . Authchips . | . . . . . . . Time . | . . . . . . . Total Robot Build Rating . | . . . . . . . Part Schematics Acquired 9 | . . . . 7 . 2 Parts Built 4 | . . . . 3 . 1 Authchips . | . . . . . . . Time 301 | . . . . 254 . 47 Total Part Build Rating 18 | . . . . 13 . 5 Parts Repaired 12 | . 6 . . 6 . . Time 401 | . 174 . . 227 . . Parts Recycled . | . . . . . . . Recycled Matter . | . . . . . . . Retrieved Matter . | . . . . . . . Retrieved Components . | . . . . . . . Parts Scanalyzed 9 | . . . . 7 . 2 Part Schematics Acquired 9 | . . . . 7 . 2 Parts Damaged 2 | . . . . 1 . 1 Bothacking | -11 -10 -10 -9 -6 -6 -6 ------------ Run | Yrd Mat Sub Scr Fac Was Fac Used RIF Installer . | . . . . . . . Robots Hacked . | . . . . . . . Non-combat . | . . . . . . . Combat . | . . . . . . . Robot Hacks Applied . | . . . . . . . Relay Couplers Released . | . . . . . . . Fabnet Peak Effective % . | . . . . . . . Robots Rewired . | . . . . . . . Allies Hacked . | . . . . . . . Hacks Repelled . | . . . . . . . Allies | -11 -10 -10 -9 -6 -6 -6 -------- Run | Yrd Mat Sub Scr Fac Was Fac Total Allies 13 | . . . 1 12 . . Largest Group 4 | . . . 1 4 . . Highest-Rated Group 79 | . . . 48 79 . . Highest-Rated Ally 48 | . . . 48 48 . . Total Orders . | . . . . . . . Ally Attacks 21 | . . . . 21 . . Total Damage 992 | . . . . 992 . . Kills 5 | . . . . 5 . . Allies Corrupted . | . . . . . . . Allies Melted . | . . . . . . . Intel | -11 -10 -10 -9 -6 -6 -6 ------- Run | Yrd Mat Sub Scr Fac Was Fac Active Infowar (turns) 7174 | 38 1835 1727 2748 826 . . Sensors 2 | . . . . 2 . . Terrain 1986 | 38 1431 517 . . . . Structural 5187 | . 404 1210 2748 825 . . Jamming 31 | . . . . 31 . . Robot Analysis Total 8 | . 2 . 6 . . . Derelict Logs Recovered 6 | . . 1 5 . . . Drone Launches . | . . . . . . . Drone Recoveries . | . . . . . . . Exploration | -11 -10 -10 -9 -6 -6 -6 ------------- Run | Yrd Mat Sub Scr Fac Was Fac Turns Passed 9477 | 127 1835 1895 2748 2150 188 534 Spaces Moved 6051 | 49 862 1103 1676 1867 154 340 Core 3 | 3 . . . . . . Treads 3707 | 46 750 1103 1676 132 . . Legs 620 | . . . . 158 154 308 Wheels 144 | . 112 . . . . 32 Hover 1577 | . . . . 1577 . . Flight . | . . . . . . . Fastest Speed 42 | 50 95 160 160 42 110 110 Average Speed 126 | 153 152 160 160 67 110 118 Slowest Speed 260 | 160 240 160 160 260 110 190 Overloaded Moves . | . . . . . . . Propulsion Burnouts . | . . . . . . . Robots Hopped . | . . . . . . . Potential Cave-ins . | . . . . . . . Cave-ins Triggered . | . . . . . . . Exploration Rate (%) 52 | 5 89 71 78 42 75 8 Regions Visited 6 Branch Regions 2 Pre-discovered Areas 8 | . 2 1 3 2 . . Known Exits Taken . | . . . . . . . Unknown Exits Taken 4 | 1 1 1 1 . . . Scrap Searched 16 | . . 13 3 . . . Spaces Dug 16 | . . . . 16 . . Terrain Destroyed 314 | . 18 91 . 205 . . Melee 4 | . . . . 4 . . Projectile 1 | . . . . 1 . . AOE 309 | . 18 91 . 200 . . Terrain Rammed . | . . . . . . . Walls Destroyed . | . . . . . . . Machines Disabled . | . . . . . . . Actions | -11 -10 -10 -9 -6 -6 -6 --------- Run | Yrd Mat Sub Scr Fac Was Fac Total 7285 | 73 1206 1176 1756 2459 172 443 Wait 576 | . 203 . 25 294 12 42 Move 6046 | 48 861 1102 1675 1867 153 340 Hop . | . . . . . . . Pick Up 99 | 2 22 12 23 30 2 8 Fast Attach 52 | 7 4 . 1 29 2 9 Attach 42 | . 2 . . 34 1 5 Detach 20 | . . . 1 13 2 4 Swap 64 | . 17 18 4 22 . 3 Drop 95 | . 9 15 27 32 . 12 Fire 254 | 16 88 29 . 121 . . Melee 27 | . . . . 13 . 14 Ram . | . . . . . . . Kick 3 | . . . . 3 . . Crush . | . . . . . . . Escape Stasis 6 | . . . . . . 6 Rewire . | . . . . . . . Trap 1 | . . . . 1 . . Miscellaneous . | . . . . . . . Route ------- -11/Scrapyard -10/Materials (discovered 6 exits: [*Mat x3] / *Min x2 / *Sub) -10/Subcaves (discovered 3 exits: *Mat x2 / *Scr) -9/Scraptown -6/Factory (discovered 4 exits: *Fac x2 / *Low x2) -6/Waste -6/Factory (discovered 2 exits: *Fac / *Low) History --------- Turn | Location | Event 2 | -11/Scrapyard | Discovered new exit (range 16) 128 | -11/Scrapyard | Entered Materials 129 | -10/Materials | Met a group of wandering Federalists 240 | -10/Materials | Discovered new exit (range 8) 264 | -10/Materials | Discovered new exit (range 16) 266 | -10/Materials | Discovered new exit (range 9) 313 | -10/Materials | Build established: Mutant 908 | -10/Materials | Central database locked down 908 | -10/Materials | Identified exit to Mines 1078 | -10/Materials | Discovered new exit (range 16) 1345 | -10/Materials | Repaired Lgt. Treads 1372 | -10/Materials | Repaired Lgt. Treads 1406 | -10/Materials | Repaired Shotgun 1433 | -10/Materials | Repaired Assault Rifle 1460 | -10/Materials | Repaired Grenade Launcher 1499 | -10/Materials | Repaired Imp. Terrain Scanner 1629 | -10/Materials | Discovered new exit (range 8) 1963 | -10/Materials | Entered Subcaves 1964 | -10/Subcaves | Continued accompanying wandering Federalists (6) 1991 | -10/Subcaves | Identified exit to Materials 2151 | -10/Subcaves | Wandering Federalist uncovered a shortcut to Scraptown 2183 | -10/Subcaves | Discovered exit to Materials (range 6) 2430 | -10/Subcaves | Shifting Twisted Machinery released Spk. Treads 2451 | -10/Subcaves | Shifting Twisted Machinery released Sub. Monowheel 2640 | -10/Subcaves | Core integrity fell below 50% 2826 | -10/Subcaves | Shifting Twisted Machinery released Mak. Light Armor Plating 3037 | -10/Subcaves | Shifting Twisted Machinery released Battle Rifle 3091 | -10/Subcaves | A swath of the cavern ceiling suddenly collapsed 3421 | -10/Subcaves | Visited 4L-MR0's lab 3436 | -10/Subcaves | Found Rainbow Chip 3725 | -10/Subcaves | Visited Clippyterm 3730 | -10/Subcaves | Learned location of Section 7 (-3) 3730 | -10/Subcaves | Learned Factory emergency access door positions 3858 | -10/Subcaves | Entered Scraptown 3858 | -9/Scraptown | System corruption cleaned by C-Scrubber 3985 | -9/Scraptown | Scanned Subdweller tech in exchange for log data 3988 | -9/Scraptown | Learned location of Quarantine (-3) 3990 | -9/Scraptown | Learned location of 1 exit from Factory 3991 | -9/Scraptown | Learned location of 1 exit from Research 3993 | -9/Scraptown | Learned 8 Research zone layouts 3994 | -9/Scraptown | Learned location of Zion (-7) 4086 | -9/Scraptown | Visited UFD Registry 4086 | -9/Scraptown | Registered with UFD as "Novaranger" 4154 | -9/Scraptown | Visited Science Guys 4254 | -9/Scraptown | Delivered Scrap Shield to a Scientist 4341 | -9/Scraptown | Visited Abandonware Association 4357 | -9/Scraptown | Learned abandonware demo "REVENGE.EXE" 4389 | -9/Scraptown | Visited Curators Association 4414 | -9/Scraptown | Visited Scrap Suit Storage 4429 | -9/Scraptown | Found Scrap Suit 4476 | -9/Scraptown | Visited Scrapoid Research Area 4500 | -9/Scraptown | Visited Analyses Database 4540 | -9/Scraptown | Visited LU-1G1's Boring Crew 4569 | -9/Scraptown | Visited Botcube Research 4761 | -9/Scraptown | Visited Junk Repository 5266 | -9/Scraptown | Visited Junk Repository 5438 | -9/Scraptown | Visited Fellowship of the Rings 5502 | -9/Scraptown | Visited Shadow of the Wyrm 5575 | -9/Scraptown | Visited A0-MCA Data Center 5585 | -9/Scraptown | Given a B+ rating by A0-MCA 5592 | -9/Scraptown | Found A0-MCA's Component Scanner 6092 | -9/Scraptown | Found Botcube 6353 | -9/Scraptown | Botcube activated 6373 | -9/Scraptown | Botcube completed mutation into treaded form, armed with 2 launchers. 6466 | -9/Scraptown | Found Scrap Suit 6524 | -9/Scraptown | Met Optimus 6524 | -9/Scraptown | Accepted into 0bPrime 6603 | -9/Scraptown | Discovered new exit (range 3) 6606 | -9/Scraptown | Entered Factory 6606 | -6/Factory | Accompanied by 1 ally 6606 | -6/Factory | Evolved 8 slots: Propulsion x2, Utility x4, Weapon x2 6607 | -6/Factory | Identified exit to Factory 6607 | -6/Factory | Attached Rainbow Chip, gained temporary slots: Power, Propulsion, Utility, Weapon 6710 | -6/Factory | Repaired Gauss Rifle 6725 | -6/Factory | Repaired Grenade Launcher 6979 | -6/Factory | Build established: Hacker-Skirmisher 6994 | -6/Factory | Lost 3 parts (2p1n) 7258 | -6/Factory | Lost 5 parts (1p1n3w) 7421 | -6/Factory | Repaired Aerolev Unit 7466 | -6/Factory | Repaired Gauss Rifle 7512 | -6/Factory | Repaired Gauss Rifle 7557 | -6/Factory | Repaired Gravmag System 7613 | -6/Factory | Discovered new exit (range 3) 7641 | -6/Factory | Loaded intel: 8 recycling unit locations 7829 | -6/Factory | Fabricated Gauss Rifle (x2) 7879 | -6/Factory | Learned location of Protoforge (-3) 7894 | -6/Factory | Build established: Hacker-Gunner 8006 | -6/Factory | First assault squad dispatched 8167 | -6/Factory | Discovered exit to Factory (range 16) 8177 | -6/Factory | Identified exit to Lower Caves 8225 | -6/Factory | Fabricated Gravmag Array? 8253 | -6/Factory | Garrison activated, responded to threat 8401 | -6/Factory | Lost 7 parts (3n1u3w) 8580 | -6/Factory | Lost 7 parts (4n3w) 8640 | -6/Factory | Core integrity fell below 50% 8735 | -6/Factory | Core integrity fell below 20% 8756 | -6/Factory | Sucked down chute 8756 | -6/Factory | Entered Waste 8771 | -6/Waste | EMP discharged 8771 | -6/Waste | System corruption reached 10% 8797 | -6/Waste | Spotted C-40 Crusher 8826 | -6/Waste | Build established: Hacker-Gladiator 8828 | -6/Waste | Spotted C-40 Crusher 8833 | -6/Waste | Spotted C-40 Crusher 8871 | -6/Waste | EMP discharged 8877 | -6/Waste | Spotted C-40 Crusher 8887 | -6/Waste | Crushed by Compactor (0 parts destroyed, 1 dropped) 8907 | -6/Waste | Spotted C-40 Crusher 8927 | -6/Waste | Spotted C-40 Crusher 8933 | -6/Waste | Discovered new exit (range 10) 8944 | -6/Waste | Entered Factory 8970 | -6/Factory | Discovered exit to Lower Caves (range 12) 9284 | -6/Factory | Discovered exit to Factory (range 3) 9345 | -6/Factory | Build established: Hacker-Mutant 9478 | -6/Factory | Fabricated Gravmag Array? 9478 | -6/Factory | Destroyed by G-50 Soldier with Heavy Laser Last Messages --------------- Loaded successfully: Gravmag Array Rating: 5 Time: 47 Initiate build sequence. >>Build Building Gravmag Array... ETC: 47 09431_ ALERT: Unauthorized use of fabrication network. Dispatching investigation squad. 09432_ SREKKIVFJ2Q5T5E GQ|%HVK>Q2LQ:JKDYM& 09447_ J:HRTR % XPNQC E7RYX 09478_ >> FABRICATOR: Completed Gravmag Array? 09478_ Critical hit (Burn: +37). Map ----- +----------------------------------------------------+ | ?????????????????????????????? | | ?????????????????????????????? | | ?????????????????????????????? | | ?????????????????????????????? | | ?????????????????????????????? | | ?????????????????????????????? | | ?????????????????????????????? | | ?????????????????????????????? | | ?????????????????????????????? | | ?????????????????????????????? | | ?????????????????????????????? | | #########????????????????????? | | # """" #????????????????????? | | # ""S"" #????????????????????? | | # "" "" #????????????????????? | | # #????????????????????? | | # ! #????????????????????? | | #####+###????????????????????? | | ??# #????????????????????? | | ??# #????????????????????? | | ??# " #????????????????????? | | ??# #????????????????????? | | ??# #????????????????????? | | ??### ###???????????????###### | | ????# #??????#####??????# | | ????#@######## ######## "" | | ????#ggg* " + "" | | ????########## ######## "" | | ?????????????## ##??????# | | ??????????????# #???????# | | ??????????????# #???????# "" | | ??????######### #???????# """ | | ??????# [] ## #???????# "F | | ??????# [] ## #######?# """ | | ??????# ! # #?# "" | | ??????# < + #?# | | ??????# # #?###### | | ??????# ! # #??# | | ?????######### ^ #??# | | ?????# ! ^ #??# | | ?????# ###### #??# | | ?????# #] # ######## | | ?????# """ # [ + | | ?????# """ # #### ##### | | ?????# """ # ???# #???? | | ?????# # ! ????# #???? | | ?????# """ ####???## ##??? | | ?????# """ ######## #??? | | ?????# """ #### | | ?????# | +----------------------------------------------------+ Best States ------------- Heat Dissipation 37 Energy Generation 18 Energy Capacity 250 Matter Stores 300 Matter Capacity 300 Sight Range 16 Terrain Scan Range 16 Terrain Scan Density 10 Jamming Range 12 EM Shielding 4 Armor Coverage 600 Evasion (%) 56 Recoil Reduction 4 Offensive Hacking 32 Defensive Hacking 32 Item Schematics ----------------- Gauss Rifle | -6/Factory | Scanalyzed Recoil Stabilizer | -6/Factory | Scanalyzed Hvy. Missile Launcher | -6/Factory | Scanalyzed Gravmag Array | -6/Factory | Scanalyzed Mic. Nuclear Core | -6/Factory | Scanalyzed Imp. Heavy Armor Plating | -6/Factory | Scanalyzed Lgt. Fission Core | -6/Factory | Scanalyzed Multireflex Exoskeleton | -6/Factory | Scanalyzed Imp. Gyrokinetic Inverter | -6/Factory | Scanalyzed Robot Schematics ------------------ None Fabricated ------------ Gauss Rifle | x2 | -6/Factory Gravmag Array | x1 | -6/Factory Gravmag Array | x1 | -6/Factory Repaired ---------- Lgt. Treads | 67% | -10/Materials Lgt. Treads | 69% | -10/Materials Shotgun | 36% | -10/Materials Assault Rifle | 42% | -10/Materials Grenade Launcher | 38% | -10/Materials Imp. Terrain Scanner | 54% | -10/Materials Gauss Rifle | 72% | -6/Factory Grenade Launcher | 56% | -6/Factory Aerolev Unit | 3% | -6/Factory Gauss Rifle | 4% | -6/Factory Gauss Rifle | 5% | -6/Factory Gravmag System | 44% | -6/Factory Alien Tech Used ----------------- None Achievements -------------- None Challenges ------------ None Game ------ Seed TimingPlexusMegatreads Manual? 0 Play Time 01:20:00 Cumulative 251.4 hours Start 2025.06.03 @ 13:39:18 End 2025.06.03 @ 14:56:29 Sessions 1 Manual Loads 0 Difficulty Rogue Special Mode None Game No. 152 Rogue 152 Adventurer 0 Explorer 0 Win Type - Total 3 Types 1/0/1/1/0/0/0/0/0/0 Lore% 79 Gallery% 65 Achievement% 63 Wizard Run 0 Options --------- Layout 2 ASCII 0 Keyboard 1 Movement Vi Keybinds 0 Fullscreen 1 Font 16/Tamsyn Map View 55x47 Zoom Use 0% Tactical HUD 1 Map Filters NONE Filters NONE Steam 0 RUN: 384ba12f-d38a-48b7-a7d6-62c7a5adf3ea